Cogmind - Beta 13 @@@ ROGUE MODE // 2024.04.18 @ 21:56:47 Player: Thaleia Result: Self-destructed Performance ------------- Evolutions (1) 500 Regions Visited (3) 600 Robots Destroyed (15) 75 Value Destroyed (417) 417 Prototype IDs (0) 0 Alien Tech Used (0) 0 Bonus (14) 14 TOTAL SCORE: 1606 Bonus ------- Follower Combat Kills 14 Cogmind --------- Core Integrity 357/400 Matter 266/300 Energy 265/265 System Corruption 0% Temperature Cool (0) Movement Treading (160) Location -9/Materials Parts ------- > --- POWER (1) -------- Improved Ion Engine > --- PROPULSION (3) --- Light Treads Light Treads Light Treads > --- UTILITY (3) ------ Small Storage Unit Light Armor Plating Improved Light Armor Plating > --- WEAPON (2) ------- (None) > --- INVENTORY (8) ---- Ion Engine Ion Engine Ion Engine Ion Engine Improved Ion Engine Light Treads Light Treads Peak State ------------ > --- POWER ------------ Improved Ion Engine > --- PROPULSION ------- Light Treads Light Treads Light Treads > --- UTILITY ---------- Small Storage Unit Light Armor Plating Improved Light Armor Plating > --- WEAPON ----------- Assault Rifle > --- INVENTORY -------- Ion Engine Ion Engine Ion Engine Ion Engine Light Treads [Rating: 11] Favorites ----------- Power Ion Engine Engine Ion Engine Propulsion Light Treads Treads Light Treads Utility Small Storage Unit Storage Small Storage Unit Protection Improved Light Armor Plating Weapon Assault Rifle Ballistic Gun Assault Rifle Launcher Grenade Launcher Build | -11 -10 -10 -9 ------- Run | Yrd Mat Min Mat Slots Evolved 2 | . . . 2 Power . | . . . . Propulsion 1 | . . . 1 Utility 1 | . . . 1 Weapon . | . . . . Parts Attached 18 | 6 2 3 7 Power 6 | 1 2 . 3 Engine 6 | 1 2 . 3 Core . | . . . . Reactor . | . . . . Propulsion 5 | 2 . . 3 Treads 5 | 2 . . 3 Leg . | . . . . Wheel . | . . . . Hover . | . . . . Flight . | . . . . Utility 3 | 1 . 1 1 Device . | . . . . Storage 1 | 1 . . . Processor . | . . . . Hackware . | . . . . Protection 2 | . . 1 1 Artifact . | . . . . Weapon 4 | 2 . 2 . Energy Gun . | . . . . Energy Cannon . | . . . . Ballistic Gun 3 | 2 . 1 . Ballistic Cannon . | . . . . Launcher 1 | . . 1 . Special Weapon . | . . . . Impact Weapon . | . . . . Slashing Weapon . | . . . . Piercing Weapon . | . . . . Special Melee Weapon . | . . . . Unidentified Prototypes . | . . . . Parts Lost 6 | . . 5 1 Power 1 | . . 1 . Propulsion 2 | . . 2 . Utility . | . . . . Weapon 3 | . . 2 1 Highest Loss Streak 4 | . . 4 1 To Critical Strikes . | . . . . Average Slot Usage (%) 71 | . 85 54 78 Engine 9 | . 14 5 11 Treads 20 | . 28 7 33 Storage 13 | . 14 14 11 Protection 6 | . . 8 12 Ballistic Gun 19 | . 28 15 11 Launcher 1 | . . 3 . Naked Turns . | . . . . Heaviest Build 20 | 13 13 14 20 Greatest Support 60 | 40 40 40 60 Greatest Overweight (x) 3 | . . 3 . Average Overweight (x) . | . . 1 . Largest Inventory Capacity 8 | 8 8 8 8 Average Capacity 7 | 7 8 8 8 Most Carried 8 | 3 8 8 7 Average Carried 5 | 1 4 7 3 Final Capacity 8 | 8 8 8 8 Final Carried 8 | 3 8 7 7 Class Distribution -------------------- 100% | Mutant Dominant Class ---------------- Mutant | -10/Materials Mutant | -10/Mines Mutant | -9/Materials Resources | -11 -10 -10 -9 ----------- Run | Yrd Mat Min Mat Matter Collected 547 | 235 117 22 173 Remotely . | . . . . Salvage Created 412 | . 176 63 173 Parts 32 | . 10 7 15 Haulers Intercepted . | . . . . Recyclers Shooed . | . . . . Parts Field Recycled . | . . . . Retrieved Matter . | . . . . Parts Self-Destructed . | . . . . Prevented . | . . . . Kills | -11 -10 -10 -9 ------- Run | Yrd Mat Min Mat Combat Hostiles Destroyed 19 | . 4 12 3 Guns 8 | . 4 1 3 AOE 11 | . . 11 . Classes Destroyed 5 | . 1 3 1 Swarmer 7 | . . 7 . Grunt 4 | . 4 . . Sentry 3 | . . . 3 Demolisher 1 | . . 1 . Assembled 4 | . . 4 . Best Kill Streak 6 | . 2 6 2 Combat Bots Only 6 | . 2 6 2 Max Kills in Single Turn 3 | . 1 3 1 Gunslinging . | . . . . Exploded 3 | . . 3 . Melee . | . . . . Uniques/NPCs Destroyed . | . . . . Combat | -11 -10 -10 -9 -------- Run | Yrd Mat Min Mat Hostile Shots Fired 93 | . 50 22 21 Missed 23 | . 13 5 5 Damage Taken 1056 | . 456 373 227 Core 184 | . 27 114 43 Absorbed by Shields . | . . . . Core Remaining (%) 71 | 100 . 43 . Volleys Fired 50 | . 20 14 16 Largest 2 | . 2 2 1 Hottest 50 | . 40 50 20 Shots Fired 80 | . 40 24 16 Gun 69 | . 40 13 16 Cannon . | . . . . Launcher 11 | . . 11 . Special . | . . . . Kinetic 69 | . 40 13 16 Thermal . | . . . . Explosive 11 | . . 11 . Electromagnetic . | . . . . Robot Hit Streak 17 | . 12 2 17 Robot Miss Streak 3 | . 1 3 . Penetration Max . | . . . . Secondary Targets . | . . . . Shots Hit Robots 54 | . 33 5 16 Core Hits 37 | . 12 18 7 Critical Kills . | . . . . Critical Parts Destroyed . | . . . . Critical Strikes . | . . . . Melee Attacks . | . . . . Impact . | . . . . Slashing . | . . . . Piercing . | . . . . Sneak Attacks . | . . . . Combat Hostiles . | . . . . Follow-up Attacks . | . . . . Damage Inflicted 1138 | . 331 611 196 Guns 539 | . 331 19 189 Cannons . | . . . . Explosions 587 | . . 587 . Melee . | . . . . Ramming 12 | . . 5 7 Kinetic 539 | . 331 19 189 Thermal . | . . . . Explosive 587 | . . 587 . Electromagnetic . | . . . . Impact . | . . . . Slashing . | . . . . Piercing . | . . . . Highest Corruption . | . . . . Average Corruption . | . . . . Corruption Purged . | . . . . Corruption Blocked . | . . . . Overload Shots . | . . . . Overflow Damage 11 | . . 11 . Projectiles . | . . . . Explosions 11 | . . 11 . Melee . | . . . . Knockbacks . | . . . . Impact . | . . . . Kinetic . | . . . . Secondary . | . . . . Self-Inflicted Damage 66 | . . 66 . Shots 4 | . . 4 . Rammed 6 | . . 4 2 Targets Rammed 6 | . . 4 2 Kicked . | . . . . Crushed . | . . . . Highest Temperature 20 | . 18 20 . Average Temperature 8 | . 8 8 . Received Heat Transfer 312 | . 249 . 63 Siege Activations . | . . . . Robots Corrupted . | . . . . Combat Hostiles . | . . . . Parts Fried . | . . . . Impact Corruptions . | . . . . Robots Melted . | . . . . Combat Hostiles . | . . . . Parts Melted . | . . . . Heat Transferred . | . . . . Parts Sabotaged . | . . . . Parts Stolen . | . . . . Parts Stripped . | . . . . Power Chain Reactions . | . . . . Alert | -11 -10 -10 -9 ------- Run | Yrd Mat Min Mat Peak Influence 231 | . 85 231 142 Initial 23 | . . 23 22 Average 64 | . 36 109 55 Maximum Alert Level 1 | . . 1 . Low Security (%) 86 | 100 100 63 100 Level 1 13 | . . 36 . Level 2 . | . . . . Level 3 . | . . . . Level 4 . | . . . . Level 5 . | . . . . High Security . | . . . . Max Security . | . . . . Squads Dispatched 2 | . 2 . . Investigation . | . . . . Extermination . | . . . . Reinforcement 2 | . 2 . . Assault . | . . . . Garrison . | . . . . Intercept . | . . . . Searches Triggered . | . . . . Construction Impeded . | . . . . Haulers Reinforced . | . . . . Active Scanning Responses . | . . . . Cargo Convoy Interrupts . | . . . . Stealth | -11 -10 -10 -9 --------- Run | Yrd Mat Min Mat Distress Signals 6 | . 3 2 1 Communications Jammed . | . . . . Distress Signals . | . . . . Times Spotted 31 | . 10 15 6 Peak Tracking Total 4 | . 4 4 4 Tactical Retreats 1 | . 1 . . Traps | -11 -10 -10 -9 ------- Run | Yrd Mat Min Mat Traps Triggered . | . . . . Indirectly . | . . . . Trap Hack Attempts . | . . . . Triggered . | . . . . Disarmed . | . . . . Reprogrammed . | . . . . Reused . | . . . . Traps Extracted . | . . . . Installed . | . . . . Triggered . | . . . . Machines | -11 -10 -10 -9 ---------- Run | Yrd Mat Min Mat Machines Disabled 1 | . . 1 . Max in Single Turn 1 | . . 1 . Machines Repaired . | . . . . Machines Dismantled . | . . . . Machines Sabotaged . | . . . . Overloaded Fab Kills . | . . . . Hacking | -11 -10 -10 -9 --------- Run | Yrd Mat Min Mat Machines Accessed . | . . . . Terminals . | . . . . Fabricators . | . . . . Repair Stations . | . . . . Recycling Units . | . . . . Scanalyzers . | . . . . Garrison Access . | . . . . Total Hacks . | . . . . Successful . | . . . . Failed . | . . . . Catastrophic . | . . . . Database Lockouts . | . . . . Manual . | . . . . Terminals . | . . . . Fabricators . | . . . . Repair Stations . | . . . . Recycling Units . | . . . . Scanalyzers . | . . . . Garrison Access . | . . . . Terminal Hacks . | . . . . Fabricator Hacks . | . . . . Repair Station Hacks . | . . . . Recycling Unit Hacks . | . . . . Scanalyzer . | . . . . Garrison Access Hacks . | . . . . Unauthorized Hacks . | . . . . Terminals . | . . . . Fabricators . | . . . . Repair Stations . | . . . . Recycling Units . | . . . . Scanalyzers . | . . . . Garrison Access . | . . . . Data Cores Recovered . | . . . . Used . | . . . . Hacking Detections . | . . . . Full Trace Events . | . . . . Feedback Events . | . . . . Feedback Blocked . | . . . . Robot Schematics Acquired . | . . . . Robots Built . | . . . . Authchips . | . . . . Time . | . . . . Total Robot Build Rating . | . . . . Part Schematics Acquired . | . . . . Parts Built . | . . . . Authchips . | . . . . Time . | . . . . Total Part Build Rating . | . . . . Parts Repaired . | . . . . Time . | . . . . Parts Recycled . | . . . . Recycled Matter . | . . . . Retrieved Matter . | . . . . Retrieved Components . | . . . . Parts Scanalyzed . | . . . . Part Schematics Acquired . | . . . . Parts Damaged . | . . . . Bothacking | -11 -10 -10 -9 ------------ Run | Yrd Mat Min Mat Used RIF Installer . | . . . . Robots Hacked . | . . . . Non-combat . | . . . . Combat . | . . . . Robot Hacks Applied . | . . . . Relay Couplers Released . | . . . . Fabnet Peak Effective % . | . . . . Robots Rewired . | . . . . Allies Hacked . | . . . . Hacks Repelled . | . . . . Allies | -11 -10 -10 -9 -------- Run | Yrd Mat Min Mat Total Allies 2 | . . 2 . Largest Group 2 | . . 2 . Highest-Rated Group 45 | . . 45 . Highest-Rated Ally 31 | . . 31 . Total Orders . | . . . . Ally Attacks 7 | . . 7 . Total Damage 81 | . . 81 . Kills 2 | . . 2 . Allies Corrupted . | . . . . Allies Melted . | . . . . Intel | -11 -10 -10 -9 ------- Run | Yrd Mat Min Mat Robot Analysis Total . | . . . . Derelict Logs Recovered 2 | . . 2 . Drone Launches . | . . . . Drone Recoveries . | . . . . Exploration | -11 -10 -10 -9 ------------- Run | Yrd Mat Min Mat Turns Passed 1573 | 127 548 588 310 Spaces Moved 815 | 77 285 298 155 Core 191 | 6 . 185 . Treads 624 | 71 285 113 155 Legs . | . . . . Wheels . | . . . . Hover . | . . . . Flight . | . . . . Fastest Speed 50 | 50 160 150 160 Average Speed 167 | 151 160 182 160 Slowest Speed 200 | 160 160 200 160 Overloaded Moves . | . . . . Propulsion Burnouts . | . . . . Robots Hopped . | . . . . Cave-ins Triggered . | . . . . Exploration Rate (%) 26 | 5 31 61 9 Regions Visited 3 Branch Regions 1 Pre-discovered Areas 2 | . . 2 . Known Exits Taken . | . . . . Unknown Exits Taken 3 | 1 1 1 . Scrap Searched . | . . . . Spaces Dug . | . . . . Terrain Destroyed 78 | . . 78 . Melee . | . . . . Projectile . | . . . . AOE 78 | . . 78 . Terrain Rammed . | . . . . Walls Destroyed . | . . . . Machines Disabled . | . . . . Actions | -11 -10 -10 -9 --------- Run | Yrd Mat Min Mat Total 943 | 85 342 318 198 Wait 41 | . 25 . 16 Move 812 | 76 284 297 155 Hop . | . . . . Pick Up 12 | 3 7 . 2 Fast Attach 8 | 6 . 1 1 Attach 5 | . . 1 4 Detach . | . . . . Swap 5 | . 2 1 2 Drop 4 | . 4 . . Fire 50 | . 20 14 16 Melee . | . . . . Ram 1 | . . 1 . Kick . | . . . . Crush 5 | . . 3 2 Escape Stasis . | . . . . Rewire . | . . . . Trap . | . . . . Miscellaneous . | . . . . Route ------- -11/Scrapyard -10/Materials -10/Mines -9/Materials History --------- Turn | Location | Event 31 | -11/Scrapyard | Discovered new exit (range 16) 128 | -11/Scrapyard | Entered Materials 300 | -10/Materials | Build established: Mutant 391 | -10/Materials | Discovered new exit (range 13) 676 | -10/Materials | Entered Mines 717 | -10/Mines | Assembled infested the area 898 | -10/Mines | Core integrity fell below 50% 928 | -10/Mines | Lost 4 parts (1p1n2w) 1059 | -10/Mines | Learned location of Storage (-8) 1062 | -10/Mines | Learned location of Zion (-6) 1192 | -10/Mines | Learned Materials stockpile data 1226 | -10/Mines | Discovered new exit (range 14) 1264 | -10/Mines | Entered Materials 1264 | -9/Materials | Evolved 2 slots: Propulsion x1, Utility x1 1574 | -9/Materials | Self-destructed Last Messages --------------- 01482_ W-16 Scout sends out distress signal. 01500_ Y-45 Defender destroyed. 01507_ Acquired Lgt. Treads. 01507_ R-06 Scavenger collects Imp. Ion Engine. 01508_ R-06 Scavenger collects Lgt. Treads. 01511_ R-06 Scavenger collects Beam Rifle. 01514_ Y-45 Defender destroyed. 01518_ K-01 Serf collects debris. 01520_ R-06 Scavenger collects Lgt. Treads. 01521_ Acquired Lgt. Armor Plating. 01521_ K-01 Serf collects debris. 01523_ R-06 Scavenger collects Beam Rifle. 01525_ R-06 Scavenger collects Hvy. Assault Rifle. 01525_ K-01 Serf collects debris. 01526_ Acquired 57 matter. 01527_ Slammed into K-01 Serf. 01531_ Acquired Lgt. Treads. 01548_ Acquired 59 matter. 01573_ Assault Rifle destroyed. Map ----- +----------------------------------------------------+ | ?????????????????????????????????????????????????? | | ?????????????????????????????????????????????????? | | ?????????????????????????????????????????????????? | | ?????????????????????????????????????????????????? | | ?????????????????????????????????????????????????? | | ?????????????????????????????????????????????????? | | ?????????????????????????????????????????????????? | | ?????????????????????????????????????????????????? | | ?????????????????????????????????????????????????? | | ??????## ##??????????????????????????????????????? | | ?????# #?????????????????????????????????????? | | ?????# #?????????????????????????????????????? | | ?????# +?????????????????????????????????????? | | ?????? ??????????????????????????????????????? | | ?????? ??????????????????????????????????????? | | ??????# #?#????????????????????????????????????? | | ??????# # ????????????###??????????????????????? | | ??????# # ???????????? #??????????????????????? | | ??????+ +?????????????# #??????????????????????? | | ??????# #?????????????# #??????????????????????? | | ??????# #?????????????# #??????????????????????? | | ####### ############### ############ ?????????? | | a ????????? | | t ????????? | | g ????????? | | ######+##################@##### #??????????????? | | ?????# ! #????????# #???? #??????????????? | | ?????# #????????# #???# #??????????????? | | ?????# #????????# #???# #??????????????? | | ?????# """ """ #????#####+##### #??????????????? | | ?????# """ """ #????# # #??????????????? | | ?????# """ """ #????# # #??????????????? | | ?????# #????# # ^#??????????????? | | ?????# #????# # #??????????????? | | ?????###########????# """ """ # #??????????????? | | ????????????????????# """ """ + #??????????????? | | ????????????????????# """ """ # ???????? | | ????????????????????# # ##### / /???? | | ????????????????????########### #?????????##???? | | ?????????????????????????????? #?????????????? | | ?????????????????????????????? #?????????????? | | ?????????????????????????????? #?????????????? | | ?????????????????????????????? #?????????????? | | ?????????????????????????????? #?????????????? | | ??????????????????????????????##/###?????????????? | | ???????????????????????????????? ???????????????? | | ???????????????????????????????? ???????????????? | | ???????????????????????????????? ???????????????? | | ???????????????????????????????? ???????????????? | | ???????????????????????????????? ???????????????? | +----------------------------------------------------+ Best States ------------- Heat Dissipation 28 Energy Generation 12 Energy Capacity 265 Matter Stores 300 Matter Capacity 300 Sight Range 16 Terrain Scan Density 10 Armor Coverage 300 Evasion (%) 40 Recoil Reduction 3 Item Schematics ----------------- None Robot Schematics ------------------ None Fabricated ------------ Nothing Alien Tech Used ----------------- None Achievements -------------- I Survived The Infestation Challenges ------------ None Game ------ Seed ShrapnelFortressExpander Manual? 0 Play Time 00:10:40 Cumulative 10.6 hours Start 2024.04.18 @ 21:47:30 End 2024.04.18 @ 21:56:47 Sessions 1 Manual Loads 0 Difficulty Rogue Special Mode None Game No. 29 Rogue 29 Adventurer 0 Explorer 0 Win Type - Total 0 Types 0/0/0/0/0/0/0/0/0 Lore% 7 Gallery% 15 Achievement% 15 Wizard Run 0 Options --------- Layout 1 ASCII 0 Keyboard 1 Movement Arrows Keybinds 0 Fullscreen 1 Font 32/Tamsyn Map View 50x40 Zoom Use 0% Tactical HUD 1 Map Filters NONE Filters NONE Steam 1 RUN: fb162193-7209-49ca-aa2c-50ed569bb3d3